bitfinex/quotes_SOLUSD_20250915
["timestamp","ask_amount","ask_price","bid_price","bid_amount"]
[1757908205282,0.06,243.27,243.25,4.82099691]
[1757908205587,0.06,243.27,243.26,31.52]
[1757908206394,0.06,243.27,243.26,35.63082792]
[1757908207701,0.06,243.27,243.26,36.34082792]
[1757908213998,0.06,243.27,243.26,31.52]
[1757908215993,0.06,243.27,243.26,35.63082792]
[1757908218313,0.06,243.27,243.26,4.11082792]
[1757908218635,4.31221664,243.27,243.26,31.52]
[1757908218793,3.77221664,243.27,243.26,31.52]
[1757908219221,0.99544135,243.27,243.26,31.52]
[1757908220215,1.53544135,243.27,243.26,31.52]
[1757908220522,0.99544135,243.27,243.26,31.52]
[1757908221624,0.99544135,243.27,243.24,4.14110126]
[1757908221819,0.99544135,243.27,243.25,31.52]
[1757908222020,0.93544135,243.26,243.25,31.52]
[1757908222532,1.47544135,243.26,243.24,0.03]
[1757908222728,1.47544135,243.25,243.24,0.03]
[1757908222925,4.2494855,243.25,243.24,31.55]
[1757908224729,3.7094855,243.25,243.24,31.55]
[1757908226034,4.2494855,243.25,243.24,31.55]
[1757908226335,3.7094855,243.25,243.24,31.55]
[1757908227401,2.77404415,243.25,243.24,31.55]
[1757908227606,3.7094855,243.25,243.24,31.55]
[1757908228228,0.93544135,243.25,243.24,31.55]
[1757908229327,1.47544135,243.25,243.24,31.55]
[1757908229533,4.24371115,243.25,243.24,31.55]
[1757908229906,8.35470806,243.25,243.24,0.03]
[1757908231319,5.58643826,243.25,243.24,0.03]
[1757908232224,5.04643826,243.25,243.24,0.03]
[1757908232433,7.81260867,243.25,243.24,0.03]
[1757908232903,8.35260867,243.25,243.24,0.03]
[1757908233843,7.81260867,243.25,243.24,0.03]
[1757908234334,5.04643826,243.25,243.24,0.03]
[1757908234550,0.93544135,243.25,243.24,0.03]
[1757908239757,1.46296937,243.25,243.24,0.03]
[1757908242228,1.52296937,243.25,243.24,0.03]
[1757908242540,5.63396628,243.25,243.24,0.03]
[1757908243255,4.17099691,243.25,243.24,0.03]
[1757908243420,5.63396628,243.25,243.24,0.03]
[1757908248043,1.52296937,243.25,243.24,0.03]
[1757908249558,0.06,243.25,243.24,0.03]
[1757908249851,1.52296937,243.25,243.24,0.03]
[1757908250447,5.63396628,243.25,243.24,0.03]
[1757908250750,10.40002903,243.25,243.24,0.03]
[1757908251947,11.42955969,243.25,243.24,0.03]
[1757908257756,10.88955969,243.25,243.24,0.03]
[1757908258554,11.42955969,243.25,243.24,0.03]
[1757908260556,2.82309338,243.25,243.24,0.71]
[1757908260744,0.06,243.25,243.24,0.71]
[1757908260936,0.06,243.25,243.24,6.46932513]
[1757908264644,0.06,243.25,243.24,7.9322945]
[1757908268064,0.06,243.25,243.24,39.4522945]
[1757908269343,0.06,243.25,243.24,37.98932513]
[1757908269535,0.06,243.25,243.24,39.4522945]
[1757908270746,0.06,243.25,243.24,39.4322945]
[1757908271960,0.06,243.25,243.24,53.02788851]
[1757908272542,1e-08,243.25,243.24,53.02788851]
[1757908272867,0.06,243.29,243.24,16.74723994]
[1757908273059,0.06,243.29,243.25,2.18296937]
[1757908273566,0.06,243.29,243.26,2.36775185]
[1757908273735,0.06,243.29,243.28,4.11048997]
[1757908274162,0.06,243.29,243.28,4.83048997]
[1757908274846,0.06,243.29,243.28,6.47824182]
[1757908278169,0.06,243.29,243.28,37.97824182]
[1757908281079,0.06,243.29,243.28,65.52121119]
[1757908281258,0.06,243.29,243.28,79.1168052]
[1757908282476,0.06,243.3,243.28,79.1168052]
[1757908282681,0.06,243.3,243.29,2.18296937]
[1757908283275,0.06,243.3,243.29,3.83044976]
[1757908283785,0.06,243.3,243.29,6.4778014]
[1757908284092,0.06,243.3,243.29,7.94077077]
[1757908285397,0.06,243.3,243.29,21.53636478]
[1757908285598,0.06,243.32,243.31,1.46296937]
[1757908285772,0.06,243.32,243.31,33.02296937]
[1757908286097,0.06,243.32,243.31,33.74296937]
[1757908286267,0.06,243.32,243.31,35.39031406]
[1757908286589,0.06,243.32,243.31,39.5002972]
[1757908287195,0.06,243.34,243.31,49.77525507]
[1757908287495,0.06,243.34,243.33,1.46296937]
[1757908287664,0.06,243.34,243.33,33.02296937]
[1757908287866,0.06,243.34,243.33,33.74296937]
[1757908288084,0.06,243.34,243.33,32.28]
[1757908288265,0.06,243.34,243.33,33.74296937]
[1757908288477,0.06,243.34,243.33,37.8526147]
[1757908288981,0.06,243.34,243.33,50.20668227]
[1757908292103,0.06,243.34,243.33,48.7437129]
[1757908292274,0.06,243.34,243.33,50.20668227]
[1757908292471,0.06,243.34,243.33,63.80227628]
[1757908298490,0.06,243.34,243.33,62.33930691]
[1757908298677,0.06,243.34,243.33,63.80227628]
[1757908299902,0.06,243.34,243.33,63.27402234]
[1757908300302,0.06,243.34,243.33,31.71402234]
[1757908300503,0.06,243.34,243.33,63.23402234]
[1757908304312,0.06,243.34,243.33,50.81995477]
[1757908304518,0.06,243.34,243.33,52.46709595]
[1757908305402,0.06,243.34,243.33,61.60964533]
[1757908305582,0.06,243.34,243.33,62.54436076]
[1757908307197,0.06,243.34,243.33,61.60964533]
[1757908307523,0.06,243.34,243.33,62.54436076]
[1757908309420,0.06,243.34,243.33,63.20436076]
[1757908311482,0.06,243.37,243.34,13.59559401]
[1757908311685,0.06,243.37,243.36,14.53030944]
[1757908312083,0.06,243.37,243.36,15.19030944]
[1757908312284,0.06,243.37,243.36,16.83724717]
[1757908312725,0.06,243.37,243.36,20.94638589]
[1757908320325,0.06,243.37,243.36,20.01167046]
[1757908320504,0.06,243.37,243.36,20.94638589]
[1757908323026,0.06,243.37,243.36,35.60913872]
[1757908323027,0.6,243.37,243.36,35.60913872]
[1757908326725,0.06,243.39,243.36,1.58471543]
[1757908327030,0.06,243.39,243.38,14.53030944]
[1757908327220,0.06,243.39,243.38,46.27030944]
[1757908327531,0.06,243.39,243.38,46.92030944]
[1757908327733,0.06,243.39,243.38,59.27081684]
[1757908328037,0.06,243.39,243.38,63.37961789]
[1757908328935,0.06,243.39,243.38,62.44490246]
[1757908329240,0.06,243.39,243.38,63.37961789]
[1757908332133,0.06,243.39,243.38,62.44490246]
[1757908332341,0.06,243.39,243.38,51.09911049]
[1757908332635,0.06,243.39,243.38,37.50351648]
[1757908333939,0.06,243.39,243.38,36.78351648]
[1757908334239,0.06,243.39,243.38,36.76351648]
[1757908334942,0.06,243.39,243.38,37.48351648]
[1757908336435,0.06,243.39,243.38,36.76351648]
[1757908338426,0.06,243.39,243.38,4.10880105]
[1757908338629,0.6,243.39,243.38,35.80880105]
[1757908338837,0.06,243.39,243.38,35.80880105]
[1757908339522,0.6,243.39,243.38,31.7]
[1757908340821,3.37175642,243.39,243.38,31.7]
[1757908341332,4.30647185,243.39,243.38,31.7]
[1757908341840,3.37175642,243.39,243.38,31.7]
[1757908342045,4.30647185,243.39,243.38,31.7]
[1757908343347,0.99471543,243.39,243.38,31.7]
[1757908343643,0.06,243.39,243.38,31.7]
[1757908344030,0.06,243.39,243.38,31.68]
[1757908345258,0.06,243.39,243.38,36.50880105]
[1757908345461,0.06,243.39,243.38,37.44351648]
[1757908350450,1.08887781,243.39,243.38,37.44351648]
[1757908350956,1.08887781,243.39,243.38,36.50880105]
[1757908351253,1.08887781,243.39,243.38,37.44351648]
[1757908352744,0.06,243.39,243.38,37.44351648]
[1757908353335,0.06,243.39,243.38,5.76351648]
[1757908353655,0.06,243.39,243.38,49.87943151]
[1757908355154,1.53471543,243.39,243.34,0.03]
[1757908355327,0.93471543,243.38,243.35,31.66]
[1757908355531,3.31140903,243.37,243.35,31.66]
[1757908355829,0.93471543,243.37,243.35,31.66]
[1757908356625,1.53471543,243.39,243.35,31.66]
[1757908356845,2.77086669,243.38,243.35,31.66]
[1757908357029,1.53471543,243.39,243.35,31.66]
[1757908357239,2.77058078,243.38,243.35,35.76924979]
[1757908357424,1.53471543,243.39,243.35,35.76924979]
[1757908357625,2.77044853,243.38,243.35,35.76924979]
[1757908357853,1.53471543,243.39,243.35,35.76924979]
[1757908358056,2.77044853,243.38,243.35,35.76924979]
[1757908358241,1.53471543,243.39,243.35,35.76924979]
[1757908358439,2.77004797,243.38,243.35,35.76924979]
[1757908358634,1.53471543,243.39,243.35,35.76924979]
[1757908358950,2.77004995,243.38,243.35,36.48924979]
[1757908359137,1.53471543,243.39,243.35,36.48924979]
[1757908359337,2.7696759,243.38,243.35,36.48924979]
[1757908359541,0.93471543,243.38,243.35,36.48924979]
[1757908359737,1.46091563,243.38,243.35,36.48924979]
[1757908360050,1.52091563,243.39,243.35,35.76924979]
[1757908360370,0.06,243.39,243.36,0.72]
[1757908360532,0.06,243.39,243.37,32.36]
[1757908361757,0.06,243.39,243.38,4.10880105]
[1757908361936,2.82921997,243.39,243.38,4.10880105]
[1757908365056,0.06,243.39,243.38,4.10880105]
[1757908365639,4.28909458,243.39,243.37,31.64]
[1757908365938,1.52091563,243.39,243.37,4.10894329]
[1757908366143,1.52091563,243.39,243.38,31.64]
[1757908369064,1.52091563,243.39,243.38,35.74880105]
[1757908369371,1.52091563,243.39,243.38,36.46880105]
[1757908369564,0.06,243.39,243.38,36.46880105]
[1757908369769,0.06,243.39,243.38,37.92971668]
[1757908376165,0.06,243.39,243.38,36.46880105]
[1757908376368,0.06,243.39,243.38,37.92971668]
[1757908377781,0.6,243.39,243.37,0.03]
[1757908377978,2.06091563,243.39,243.38,31.6]
[1757908378863,1.52091563,243.39,243.38,31.6]
[1757908379469,4.2903253,243.39,243.38,31.6]
[1757908379985,2.06091563,243.39,243.38,31.6]
[1757908380186,2.82940967,243.39,243.38,31.6]
[1757908380380,4.2903253,243.39,243.38,31.6]
[1757908380677,1.52091563,243.39,243.38,31.6]
[1757908382295,2.06091563,243.39,243.37,0.03]
[1757908382459,4.16865971,243.39,243.38,31.6]
[1757908382648,2.8298799,243.39,243.38,31.6]
[1757908383584,4.29079553,243.39,243.38,31.6]
[1757908383886,2.8298799,243.39,243.38,31.6]
[1757908384078,0.06,243.39,243.38,31.6]
[1757908384390,1.52091563,243.39,243.38,31.6]
[1757908385064,2.06091563,243.39,243.38,31.6]
[1757908385264,4.82932467,243.39,243.38,31.6]
[1757908386980,4.82932467,243.39,243.37,0.03]
[1757908387196,4.22932467,243.38,243.37,31.63]
[1757908388060,5.79826126,243.38,243.37,0.03]
[1757908388270,9.90706231,243.38,243.37,0.03]
[1757908392594,11.36797794,243.38,243.37,0.03]
[1757908393471,11.36818689,243.38,243.37,0.03]
[1757908395570,9.90727126,243.38,243.37,0.03]
[1757908399179,9.36727126,243.38,243.37,0.03]
[1757908399587,9.90727126,243.38,243.37,0.03]
[1757908401197,11.36818689,243.38,243.37,0.03]
[1757908403007,11.42818689,243.38,243.37,0.03]
[1757908403377,9.96727126,243.38,243.37,0.03]
[1757908404494,9.42727126,243.38,243.37,0.03]
[1757908408775,10.88818689,243.38,243.37,0.03]
[1757908409404,10.88817549,243.38,243.37,0.03]
[1757908410071,11.42817549,243.38,243.37,0.03]
[1757908410272,10.88817549,243.38,243.37,0.03]
[1757908410479,0.06,243.38,243.37,0.74]
[1757908412500,1.52091563,243.38,243.37,0.74]
[1757908414693,0.06,243.38,243.37,0.74]
[1757908416593,5.62971668,243.38,243.37,0.74]
[1757908417185,5.62971668,243.38,243.37,0.03]
[1757908417788,8.38709125,243.38,243.37,0.03]
[1757908418105,11.41702999,243.38,243.37,0.03]
[1757908418281,10.87702999,243.38,243.37,0.03]
[1757908418483,9.41611436,243.38,243.37,0.03]
[1757908418683,9.41615945,243.38,243.37,0.03]
[1757908418982,11.41707508,243.38,243.37,0.03]
[1757908419502,36.87707508,243.38,243.37,0.03]
[1757908419805,9.41615945,243.38,243.37,0.03]
[1757908420481,35.41615945,243.38,243.37,0.03]
[1757908420883,9.41615945,243.38,243.37,0.03]
[1757908421084,35.95615945,243.38,243.37,0.03]
[1757908421323,9.95615945,243.38,243.37,0.03]
[1757908421501,11.41707508,243.38,243.37,0.03]
[1757908421900,13.17319572,243.38,243.37,0.03]
[1757908422100,39.17319572,243.38,243.37,0.03]
[1757908422310,13.17319572,243.38,243.37,0.03]
[1757908422506,16.63249674,243.38,243.37,0.03]
[1757908423176,16.63249674,243.38,243.34,0.03]
[1757908423177,13.59559401,243.37,243.34,0.03]
[1757908423377,0.93559038,243.35,243.34,0.03]
[1757908423604,4.72203315,243.35,243.34,0.03]
[1757908423827,6.91012445,243.35,243.34,0.03]
[1757908424295,12.31927012,243.35,243.34,0.03]
[1757908424493,16.43282252,243.35,243.34,0.03]
[1757908424692,46.96375432,243.35,243.34,0.03]
[1757908424886,47.99300185,243.35,243.34,0.03]
[1757908425279,61.58859586,243.35,243.34,0.03]
[1757908425483,61.58859586,243.35,243.31,0.03]
[1757908425484,26.0,243.32,243.31,0.03]
[1757908425690,30.7264573,243.32,243.31,0.03]
[1757908425890,4.7264573,243.32,243.31,0.03]
[1757908426107,5.2664573,243.32,243.31,0.03]
[1757908426608,22.97186554,243.32,243.31,0.03]
[1757908427299,22.97186554,243.32,243.29,0.03]
[1757908427300,132.5,243.31,243.29,0.03]
[1757908427508,4.7264573,243.3,243.29,0.03]
[1757908428608,6.3748882,243.3,243.29,0.03]
[1757908428798,24.08063428,243.3,243.29,0.03]
[1757908428998,24.62063428,243.3,243.29,0.03]
[1757908429212,26.0,243.29,243.28,0.03]
[1757908429401,29.79086692,243.29,243.28,0.03]
[1757908429602,30.7264573,243.29,243.28,0.03]
[1757908430398,30.7266371,243.29,243.28,0.03]
[1757908430912,34.83695811,243.29,243.28,0.69]
[1757908431127,34.83695811,243.29,243.28,0.03]
[1757908432626,29.79104672,243.29,243.28,0.69]
[1757908432941,0.93559038,243.29,243.28,0.69]
[1757908433104,2.7603192,243.31,243.28,0.69]
[1757908433429,0.93559038,243.29,243.28,0.69]
[1757908438527,7.80590582,243.29,243.28,0.03]
[1757908438731,8.83532164,243.29,243.28,0.03]
[1757908438917,34.83532164,243.29,243.28,0.03]
[1757908444220,34.83532164,243.29,243.28,0.69]
[1757908445223,34.83532164,243.29,243.28,0.03]
[1757908446344,32.87031544,243.29,243.28,0.69]
[1757908446536,33.80590582,243.29,243.28,0.69]
[1757908446736,33.80590582,243.29,243.28,0.03]
[1757908447852,33.80590582,243.29,243.28,0.69]
[1757908448027,33.80590582,243.29,243.28,0.03]
[1757908448230,33.80590582,243.29,243.28,0.69]
[1757908448927,33.80590582,243.29,243.28,0.03]
[1757908450153,28.75999443,243.29,243.28,0.74]
[1757908450448,136.60999079,243.31,243.28,0.74]
[1757908450650,0.93559038,243.29,243.28,0.74]
[1757908452763,136.60999079,243.31,243.28,0.74]
[1757908452942,0.93559038,243.29,243.28,0.74]
[1757908453943,0.06,243.35,243.28,4.85045057]
[1757908454233,0.06,243.35,243.3,0.93559038]
[1757908454646,0.06,243.35,243.31,0.71]
[1757908455244,0.93559038,243.34,243.31,0.71]
[1757908456336,0.06,243.35,243.31,0.71]
[1757908456560,0.93559038,243.34,243.31,0.71]
[1757908457241,0.99559038,243.35,243.31,0.71]
[1757908457445,0.99559038,243.35,243.31,4.81995294]
[1757908457760,0.99559038,243.35,243.32,0.71]
[1757908460250,0.93559038,243.34,243.32,0.71]
[1757908461257,0.93559038,243.34,243.33,0.71]
[1757908464656,0.06,243.35,243.33,0.71]
[1757908464839,0.99559038,243.35,243.33,0.71]
[1757908465349,0.06,243.35,243.33,4.81964423]
[1757908465548,0.06,243.35,243.34,1.64559038]
[1757908465752,0.06,243.35,243.34,5.81451354]
[1757908466642,0.06,243.35,243.34,8.98839961]
[1757908466957,0.06,243.35,243.34,9.92398999]
[1757908468465,0.06,243.35,243.34,22.58399362]
[1757908468766,0.06,243.35,243.34,23.519584]
[1757908469261,0.06,243.35,243.34,23.93053164]
[1757908469446,0.06,243.35,243.34,23.519584]
[1757908470458,1e-08,243.35,243.34,23.93053164]
[1757908470742,1e-08,243.35,243.34,22.99494126]
[1757908470949,1e-08,243.35,243.34,23.519584]
[1757908472072,0.06,243.4,243.38,13.59559401]
[1757908472268,0.06,243.41,243.38,46.48206449]
[1757908472477,0.06,243.41,243.4,40.53118439]
[1757908472966,1e-08,243.41,243.4,40.71644035]
[1757908473172,1e-08,243.41,243.4,40.30559401]
[1757908473467,1e-08,243.41,243.4,71.84559401]
[1757908473649,1e-08,243.41,243.4,76.88964782]
[1757908474570,1e-08,243.41,243.4,45.34964782]
[1757908474871,1e-08,243.41,243.4,76.94964782]
[1757908475445,1e-08,243.41,243.4,76.01405744]
[1757908475646,1e-08,243.41,243.4,45.34964782]
[1757908475966,1e-08,243.41,243.4,77.06964782]
[1757908476155,1e-08,243.41,243.4,76.21405744]
[1757908476474,1e-08,243.41,243.4,77.14964782]
[1757908477462,1e-08,243.41,243.4,44.41405744]
[1757908477769,1e-08,243.41,243.4,45.34964782]
[1757908478070,1e-08,243.41,243.4,77.14964782]
[1757908479475,1e-08,243.41,243.4,4.10846343]
[1757908479769,1e-08,243.41,243.4,35.90846343]
[1757908479955,1e-08,243.41,243.4,36.59846343]
[1757908480346,1e-08,243.41,243.4,35.90846343]
[1757908480747,1e-08,243.41,243.4,36.59846343]
[1757908481475,1e-08,243.41,243.4,35.90846343]
[1757908482582,1e-08,243.41,243.38,2.15015186]
[1757908482583,1e-08,243.41,243.35,39.59559401]
[1757908482878,1e-08,243.41,243.38,0.69]
[1757908483174,1e-08,243.41,243.39,31.78]
[1757908484655,1e-08,243.41,243.39,32.47]
[1757908485056,1e-08,243.41,243.39,35.8886036]
[1757908485875,1e-08,243.41,243.39,36.5786036]
[1757908487491,0.54000001,243.41,243.39,31.78]
[1757908487657,1.46015187,243.41,243.4,31.74]
[1757908489158,1e-08,243.41,243.4,32.43]
[1757908489354,1e-08,243.41,243.4,36.53846343]
[1757908489559,1e-08,243.41,243.4,37.99861529]
[1757908490161,1e-08,243.41,243.4,36.53846343]
[1757908490368,1.46015187,243.41,243.4,31.74]
[1757908491365,2.00015187,243.41,243.4,31.74]
[1757908491582,2.00015187,243.41,243.39,31.74]
[1757908491890,1.46015186,243.4,243.39,31.74]
[1757908492573,2.00015186,243.4,243.39,31.74]
[1757908492758,2.00015186,243.4,243.38,0.03]
[1757908492958,2.00015186,243.4,243.38,31.77]
[1757908493774,1.46015186,243.39,243.38,31.77]
[1757908494075,0.54,243.4,243.38,31.77]
[1757908494282,1.46015186,243.39,243.38,31.77]
[1757908495770,1.46015186,243.39,243.38,36.54880105]
[1757908495975,1.46015186,243.4,243.38,36.54880105]
[1757908496173,1.46015186,243.4,243.39,0.67]
[1757908496572,1.46015186,243.4,243.38,35.87880105]
[1757908496765,1.46015187,243.41,243.39,0.67]
[1757908496990,1e-08,243.41,243.39,0.67]
[1757908497288,1e-08,243.41,243.4,4.10846343]
[1757908497663,1e-08,243.41,243.4,4.77846343]
[1757908499066,1e-08,243.41,243.4,0.67]
[1757908499267,1e-08,243.41,243.4,32.39]
[1757908499473,1e-08,243.41,243.4,47.44574587]
[1757908500692,1e-08,243.41,243.4,51.5542093]
[1757908502089,1e-08,243.41,243.4,50.09405744]
[1757908502281,1e-08,243.41,243.4,51.5542093]
[1757908503949,1e-08,243.42,243.41,13.59559401]
[1757908504084,1e-08,243.42,243.41,19.83404051]
[1757908504709,1e-08,243.42,243.41,18.37388865]
[1757908504919,1e-08,243.42,243.41,50.07388865]
[1757908505412,1e-08,243.42,243.41,51.53404051]
[1757908505791,1e-08,243.42,243.41,36.47829464]
[1757908508534,1e-08,243.42,243.41,37.9384465]
[1757908508835,1e-08,243.42,243.41,36.47829464]
[1757908509026,1e-08,243.42,243.41,37.9384465]
[1757908510826,1e-08,243.42,243.41,37.9184465]
[1757908513812,1e-08,243.42,243.41,36.45829464]
[1757908514018,1e-08,243.42,243.41,37.9184465]
[1757908514534,1e-08,243.42,243.41,36.45829464]
[1757908514833,1e-08,243.42,243.41,37.9184465]
[1757908518533,1e-08,243.42,243.41,6.2384465]
[1757908518733,1e-08,243.42,243.41,37.8784465]
[1757908519437,1e-08,243.42,243.41,6.2384465]
[1757908519742,1e-08,243.42,243.41,37.8784465]
[1757908524030,1e-08,243.42,243.41,37.2084465]
[1757908524546,1e-08,243.42,243.41,37.8884465]
[1757908524916,1e-08,243.42,243.41,37.2084465]
[1757908525113,1e-08,243.42,243.41,35.74829464]
[1757908526749,1e-08,243.42,243.41,36.42829464]
[1757908528434,1e-08,243.42,243.41,37.8884465]
[1757908530944,1e-08,243.42,243.41,37.9184465]
[1757908532348,1e-08,243.42,243.41,35.77829464]
[1757908534023,1e-08,243.42,243.41,36.45829464]
[1757908537648,1e-08,243.42,243.41,37.9184465]
[1757908538960,1e-08,243.42,243.41,36.45829464]
[1757908539349,1e-08,243.42,243.41,35.77829464]
[1757908540938,1e-08,243.42,243.41,36.44829464]
[1757908541559,1e-08,243.42,243.41,35.77829464]
[1757908542958,1e-08,243.42,243.41,36.44829464]
[1757908545447,1e-08,243.42,243.41,35.77829464]
[1757908547244,1e-08,243.42,243.41,0.03]
[1757908547448,1e-08,243.42,243.41,31.59]
[1757908549549,1e-08,243.42,243.41,36.36829464]
[1757908550061,1e-08,243.42,243.41,35.69829464]
[1757908550362,1e-08,243.42,243.41,36.36829464]
[1757908554053,1e-08,243.42,243.41,35.69829464]
[1757908554569,1e-08,243.42,243.41,36.36829464]
[1757908557167,1e-08,243.42,243.41,4.80829464]
[1757908557348,1e-08,243.42,243.41,36.36829464]
[1757908564378,1e-08,243.42,243.41,4.80829464]
[1757908564583,1e-08,243.42,243.41,36.36829464]
[1757908565174,1e-08,243.42,243.41,35.69829464]
[1757908566691,1e-08,243.42,243.41,36.40829464]
[1757908570284,0.54000001,243.42,243.41,35.69829464]
[1757908570483,1e-08,243.42,243.41,35.69829464]
[1757908570970,1e-08,243.42,243.41,35.67829464]
[1757908575677,1.47434483,243.42,243.41,31.57]
[1757908577304,4.24557764,243.42,243.41,0.03]
[1757908577872,8.35370351,243.42,243.41,0.03]
[1757908578873,4.24557764,243.42,243.41,0.03]
[1757908580996,8.35370351,243.42,243.41,0.03]
[1757908581997,7.41935869,243.42,243.41,0.03]
[1757908582176,8.35370351,243.42,243.41,0.03]
[1757908582591,9.38232268,243.42,243.41,0.03]
[1757908585598,8.84232268,243.42,243.41,0.03]
[1757908587385,7.81370351,243.42,243.41,0.03]
[1757908587783,2.77123282,243.42,243.41,0.03]
[1757908588083,0.06,243.43,243.41,0.69]
[1757908588601,0.06,243.43,243.42,32.12]
[1757908589014,0.99434482,243.43,243.42,32.78]
[1757908589195,0.06,243.43,243.42,0.66]
[1757908589391,0.06,243.43,243.42,32.12]
[1757908589595,0.99434482,243.43,243.42,32.78]
[1757908591510,0.06,243.43,243.42,32.78]
[1757908593620,0.99434482,243.43,243.42,32.78]
[1757908593792,0.06,243.43,243.42,32.78]
[1757908598800,0.06,243.43,243.42,32.81]
[1757908599009,0.06,243.43,243.42,0.69]
[1757908599320,0.06,243.43,243.42,32.89]
[1757908599510,0.06,243.43,243.42,36.99812587]
[1757908603206,0.06,243.43,243.42,38.64499578]
[1757908603614,0.78,243.43,243.42,1.67686991]
[1757908603824,0.78,243.43,243.42,33.83686991]
[1757908604014,0.78,243.43,243.42,1.67686991]
[1757908604015,2.24024296,243.43,243.42,1.67686991]
[1757908604325,5.00495756,243.43,243.42,1.67686991]
[1757908604617,9.11291467,243.43,243.42,0.03]
[1757908605211,7.65267171,243.43,243.42,0.03]
[1757908605412,5.00495756,243.43,243.42,0.03]
[1757908608040,9.11291467,243.43,243.42,0.03]
[1757908617610,7.65267171,243.43,243.42,0.03]
[1757908618034,7.65267171,243.43,243.39,0.03]
[1757908618035,26.0,243.4,243.39,0.03]
[1757908618222,61.85343528,243.4,243.36,0.03]
[1757908618422,9.58234863,243.39,243.36,0.03]
[1757908618624,3.79343528,243.38,243.36,0.03]
[1757908619138,8.58223633,243.38,243.36,0.03]
[1757908619336,7.55351565,243.38,243.36,0.03]
[1757908619527,9.20119962,243.38,243.36,0.03]
[1757908620128,12.12168554,243.38,243.36,0.03]
[1757908621826,13.15065915,243.38,243.36,0.03]
[1757908623437,26.74625316,243.38,243.36,0.03]
[1757908623631,25.71727955,243.38,243.36,0.03]
[1757908623833,2.92048592,243.37,243.36,0.03]
[1757908624018,31.68520052,243.37,243.36,0.03]
[1757908624546,32.36520052,243.37,243.36,0.03]
[1757908625038,38.12205801,243.37,243.36,0.03]
[1757908626036,1.46024296,243.39,243.36,0.73]
[1757908626621,2.75743381,243.41,243.36,0.73]
[1757908626954,1.46024296,243.42,243.36,2.37720901]
[1757908627125,1.46024296,243.42,243.37,4.80896988]
[1757908627447,1.46024296,243.42,243.38,0.7]
[1757908627644,26.06,243.43,243.38,0.7]
[1757908627820,1.46024296,243.42,243.38,0.7]
[1757908628351,1.46024296,243.42,243.38,4.80872888]
[1757908628523,1.46024296,243.42,243.39,0.68]
[1757908629832,1.46024296,243.41,243.39,0.68]
[1757908630027,0.06,243.43,243.39,4.78859878]
[1757908630228,0.06,243.43,243.4,0.68]
[1757908631022,0.06,243.43,243.41,1.64693772]
[1757908631248,0.06,243.43,243.42,4.10812587]
[1757908631445,0.06,243.43,243.42,4.78812587]
[1757908634127,0.06,243.43,243.42,6.43486019]
[1757908634648,0.06,243.43,243.42,2.32673432]
[1757908635329,0.06,243.43,243.42,3.78697728]
[1757908636736,0.06,243.43,243.42,2.32673432]
[1757908638041,0.06,243.43,243.42,2.32673432]
[1757908638433,0.06,243.43,243.42,3.78697728]
[1757908639036,0.06,243.43,243.42,2.32673432]
[1757908639635,0.06,243.43,243.42,1.64673432]
[1757908639849,0.06,243.43,243.42,5.75486019]
[1757908640244,0.06,243.43,243.42,6.43486019]
[1757908642055,0.06,243.43,243.42,5.75486019]
[1757908642450,0.06,243.43,243.42,6.43486019]
[1757908644558,0.06,243.43,243.4,38.20855052]
[1757908644736,0.78,243.43,243.38,2.14024296]
[1757908644937,0.78,243.43,243.39,32.6]
[1757908645150,0.78,243.43,243.39,31.92]